Cogmind - Beta 14 @@@ ROGUE MODE // 2024.09.26 @ 15:41:22 Player: star Result: Destroyed by H-66 Slayer with Gauss Rifle Performance ------------- Evolutions (4) 2000 Regions Visited (5) 1000 Robots Destroyed (55) 275 Value Destroyed (1997) 1997 Prototype IDs (19) 380 Alien Tech Used (0) 0 Bonus (1321) 1321 TOTAL SCORE: 6973 Bonus ------- High Alert Combat Kills 12 Follower Combat Kills 70 Delivered SUBCON Basin 2000 Registered with UFD 300 Friendly Fire -1061 Cogmind --------- Core Integrity 0/850 Matter 92/300 Energy 99/100 System Corruption 17% Temperature Cool (18) Movement Core (50) Location -6/Factory Parts ------- > --- POWER (1) -------- (None) > --- PROPULSION (4) --- (None) > --- UTILITY (7) ------ Improved Heat Sink Advanced Targeting Computer Tech Extrapolator > --- WEAPON (3) ------- (None) > --- INVENTORY (5) ---- Scrap Suit Scrap Suit CPS Tube (1) Peak State ------------ > --- POWER ------------ Improved Deuterium Engine > --- PROPULSION ------- Light Treads Light Treads Armored Treads Improved Cesium-ion Thruster > --- UTILITY ---------- High-capacity Storage Unit Machine Analyzer Enhanced Optical Array 0b10 Decoder Chip [Skirmisher] Targeting Computer Targeting Computer Tech Extrapolator > --- WEAPON ----------- Improved Lightning Gun Makeshift Laser Heavy Machine Gun > --- INVENTORY -------- Micro Nuclear Core Fusion Compressor Fusion Compressor Light Treads Carbon-fiber Leg Scrap Suit Scrap Suit Enhanced Optical Array Enhanced Optical Array 0b10 Decoder Chip [Skirmisher] Improved Hardlight Generator EM Shotgun Flak Gun CPS Tube CPS Tube CPS Tube Spear [Rating: 58] Favorites ----------- Power Light Angular Momentum Engine Engine Light Angular Momentum Engine Power Core Micro Nuclear Core Propulsion Light Treads Treads Light Treads Leg Carbon-fiber Leg Wheel Subdweller Monowheel Hover Unit Gravmag System Flight Unit Improved Cesium-ion Thruster Utility High-capacity Storage Unit Device V3-11A's Pendant Storage High-capacity Storage Unit Processor Tech Extrapolator Protection Scrap Shield Weapon Heavy Battle Rifle Energy Gun Makeshift Laser Energy Cannon Subdweller Beam Cannon Ballistic Gun Heavy Battle Rifle Ballistic Cannon Light Cannon Special Weapon Flamer Piercing Weapon Spear Build | -11 -10 -10 -9 -9 -6 ------- Run | Yrd Mat Sub Rec Scr Fac Slots Evolved 8 | . . . . . 8 Power . | . . . . . . Propulsion 2 | . . . . . 2 Utility 5 | . . . . . 5 Weapon 1 | . . . . . 1 Parts Attached 107 | 6 9 24 1 11 56 Power 15 | 1 2 2 . 2 8 Engine 10 | 1 2 2 . 2 3 Core 5 | . . . . . 5 Reactor . | . . . . . . Propulsion 29 | 2 3 7 . 3 14 Treads 18 | 2 3 1 . 3 9 Leg 2 | . . . . . 2 Wheel 6 | . . 6 . . . Hover 1 | . . . . . 1 Flight 2 | . . . . . 2 Utility 33 | 1 3 8 1 2 18 Device 12 | . 2 1 . . 9 Storage 8 | 1 1 4 . 2 . Processor 8 | . . . 1 . 7 Hackware . | . . . . . . Protection 5 | . . 3 . . 2 Artifact . | . . . . . . Weapon 30 | 2 1 7 . 4 16 Energy Gun 15 | 2 . 2 . 1 10 Energy Cannon 1 | . . 1 . . . Ballistic Gun 9 | . 1 2 . 3 3 Ballistic Cannon 1 | . . 1 . . . Launcher . | . . . . . . Special Weapon 3 | . . 1 . . 2 Impact Weapon . | . . . . . . Slashing Weapon . | . . . . . . Piercing Weapon 1 | . . . . . 1 Special Melee Weapon . | . . . . . . Unidentified Prototypes 5 | . . 1 . . 4 Parts Lost 38 | . 2 1 . 6 29 Power 4 | . 1 . . . 3 Propulsion 10 | . . . . 1 9 Utility 9 | . . 1 . 3 5 Weapon 15 | . 1 . . 2 12 Highest Loss Streak 7 | . 2 1 . 6 7 To Critical Strikes . | . . . . . . Average Slot Usage (%) 90 | . 89 91 100 98 78 Engine 11 | . 13 14 14 14 4 Treads 17 | . 24 12 14 26 12 Wheel 5 | . . 15 14 1 . Device 3 | . 7 4 . . 3 Storage 12 | . 14 12 27 14 5 Processor 10 | . . . . 14 27 Energy Gun 12 | . 24 6 14 13 10 Ballistic Gun 9 | . 3 12 14 13 6 Special Weapon 2 | . . 7 . . . Peak Build Rating 58 | 6 9 38 37 33 58 Average Rating 30 | 4 7 30 36 28 48 On Entrance 18 | . 6 9 37 24 33 Naked Turns . | . . . . . . Heaviest Build 74 | 14 30 58 58 58 74 Greatest Support 80 | 40 46 40 20 40 80 Greatest Overweight (x) 19 | . 1 19 2 2 19 Average Overweight (x) 1 | . . 1 2 1 2 Largest Inventory Capacity 25 | 8 15 25 20 20 20 Average Capacity 17 | 6 11 16 20 19 19 Most Carried 20 | 2 15 20 20 20 20 Average Carried 14 | . 8 16 19 13 16 Final Capacity 20 | 8 15 20 20 20 5 Final Carried 20 | 2 15 20 6 18 5 Class Distribution -------------------- 73% | Mutant 10% | Scavenger-Gunner 9% | Scavenger-Mutant 5% | Tank Dominant Class ---------------- Mutant | -10/Materials Mutant | -10/Subcaves Mutant | -9/Recycling Mutant | -9/Scraptown Scavenger-Gunner | -6/Factory Resources | -11 -10 -10 -9 -9 -6 ----------- Run | Yrd Mat Sub Rec Scr Fac Matter Collected 2455 | 162 508 453 256 132 944 Remotely . | . . . . . . Salvage Created 2308 | . 486 140 . . 1682 Parts 143 | . 31 9 . . 103 Haulers Intercepted 3 | . 1 . . . 2 Recyclers Shooed 3 | . . . . . 3 Parts Field Recycled . | . . . . . . Retrieved Matter . | . . . . . . Parts Self-Destructed 7 | . . 7 . . . Prevented . | . . . . . . Kills | -11 -10 -10 -9 -9 -6 ------- Run | Yrd Mat Sub Rec Scr Fac Combat Hostiles Destroyed 41 | . 13 2 . . 26 Melee 1 | . . . . . 1 Guns 36 | . 13 . . . 23 Cannons 2 | . . 2 . . . AOE 1 | . . . . . 1 Classes Destroyed 13 | . 4 2 . . 7 Worker 3 | . . . . . 3 Builder 2 | . 2 . . . . Hauler 3 | . 1 . . . 2 Mechanic 1 | . . . . . 1 Operator 1 | . . . . . 1 Swarmer 6 | . 6 . . . . Grunt 17 | . 7 . . . 10 Brawler 1 | . . . . . 1 Sentry 5 | . . . . . 5 Specialist 2 | . . . . . 2 Hunter 2 | . . . . . 2 Programmer 6 | . . . . . 6 Subdweller 5 | . . 3 . . 2 Guerrilla 1 | . . 1 . . . Best Kill Streak 4 | . 3 1 . . 4 Combat Bots Only 4 | . 3 1 . . 4 Max Kills in Single Turn 3 | . 1 1 . . 3 Gunslinging . | . . . . . . Exploded 1 | . . . . . 1 Melee 1 | . . . . . 1 Uniques/NPCs Destroyed . | . . . . . . Combat | -11 -10 -10 -9 -9 -6 -------- Run | Yrd Mat Sub Rec Scr Fac Hostile Shots Fired 504 | . 74 22 . . 408 Missed 146 | . 18 6 . . 122 Damage Taken 5063 | . 543 343 . . 4177 Core 1044 | . 147 33 . . 864 Absorbed by Shields 117 | . . . . . 117 Regen/Repaired (Parts) 360 | . . . . 360 . Core Remaining (%) 64 | 100 . . . 28 . Volleys Fired 199 | . 41 70 . . 88 Largest 3 | . 2 2 . . 3 Hottest 260 | . 100 178 . . 260 Shots Fired 372 | . 81 93 . . 198 Gun 323 | . 81 46 . . 196 Cannon 34 | . . 34 . . . Launcher . | . . . . . . Special 15 | . . 13 . . 2 Kinetic 154 | . 9 53 . . 92 Thermal 180 | . 72 40 . . 68 Explosive . | . . . . . . Electromagnetic 36 | . . . . . 36 Robot Hit Streak 19 | . 12 8 . . 19 Robot Miss Streak 4 | . 3 2 . . 4 Penetration Max . | . . . . . . Secondary Targets 7 | . 2 . . . 5 Max Gunslinging Chain 1 | . 1 . . . 1 Shots Hit Robots 230 | . 50 23 . . 157 Core Hits 138 | . 24 13 . . 101 Critical Kills . | . . . . . . Critical Parts Destroyed . | . . . . . . Critical Strikes 10 | . 2 2 . . 6 Burn 9 | . 2 2 . . 5 Corrupt 1 | . . . . . 1 Melee Attacks 5 | . . . . . 5 Impact . | . . . . . . Slashing . | . . . . . . Piercing 5 | . . . . . 5 Sneak Attacks . | . . . . . . Combat Hostiles . | . . . . . . Follow-up Attacks . | . . . . . . Damage Inflicted 5273 | . 617 370 . . 4286 Guns 4308 | . 614 206 . . 3488 Cannons 45 | . . 45 . . . Explosions 681 | . . . . . 681 Melee 117 | . . . . . 117 Ramming 10 | . 3 7 . . . Kinetic 1947 | . 74 205 . . 1668 Thermal 2600 | . 540 158 . . 1902 Explosive . | . . . . . . Electromagnetic 599 | . . . . . 599 Impact . | . . . . . . Slashing . | . . . . . . Piercing 117 | . . . . . 117 Highest Corruption 17 | . 3 3 3 . 17 Average Corruption 5 | . 2 3 3 . 10 Corruption Purged . | . . . . . . Corruption Blocked . | . . . . . . Effects 232 | . 21 81 15 . 115 Message Errors 63 | . 4 19 4 . 36 Matter Fused 46 | . 3 16 5 . 22 Heat Flow Errors 21 | . 1 6 2 . 12 Energy Discharges 33 | . 6 10 . . 17 Parts Rejected 4 | . 2 1 . . 1 Parts Fused 5 | . . 3 . . 2 Data Loss (minor) 33 | . 4 17 2 . 10 Data Loss (major) 11 | . . 4 1 . 6 Misfires 7 | . 1 3 . . 3 Alerts 7 | . . 2 1 . 4 Weapon Failures 2 | . . . . . 2 Overload Shots 19 | . . 13 . . 6 Effects 5 | . . 4 . . 1 Energy Bleed 2 | . . 1 . . 1 Heat Surge 2 | . . 2 . . . Short Circuit 1 | . . 1 . . . Overflow Damage 155 | . . . . . 155 Projectiles . | . . . . . . Explosions 155 | . . . . . 155 Melee . | . . . . . . Knockbacks . | . . . . . . Impact . | . . . . . . Kinetic . | . . . . . . Secondary . | . . . . . . Self-Inflicted Damage 422 | . . 3 . . 419 Shots 5 | . . . . . 5 Rammed 3 | . 1 2 . . . Targets Rammed 3 | . 1 2 . . . Kicked . | . . . . . . Crushed . | . . . . . . Highest Temperature 576 | . 312 276 178 . 576 Average Temperature 103 | . 90 104 78 . 110 Received Heat Transfer 1035 | . 192 36 . . 807 Effects 13 | . 1 . . . 12 Shutdowns 1 | . . . . . 1 Energy Bleed 1 | . . . . . 1 Interference 4 | . 1 . . . 3 Short Circuit 3 | . . . . . 3 Damage (major) 4 | . . . . . 4 Siege Activations . | . . . . . . Robots Corrupted 1 | . . . . . 1 Combat Hostiles 1 | . . . . . 1 Parts Fried 1 | . . . . . 1 Impact Corruptions . | . . . . . . Robots Melted . | . . . . . . Combat Hostiles . | . . . . . . Parts Melted 9 | . 4 . . . 5 Heat Transferred 6123 | . 1739 1194 . . 3190 Parts Sabotaged . | . . . . . . Parts Stolen . | . . . . . . Parts Stripped . | . . . . . . Power Chain Reactions 1 | . . . . . 1 Alert | -11 -10 -10 -9 -9 -6 ------- Run | Yrd Mat Sub Rec Scr Fac Peak Influence 417 | . 182 . 22 . 417 Initial . | . . . . . . Average 110 | . 67 . 3 . 172 Maximum Alert Level 2 | . . . . . 2 Low Security (%) 81 | 100 100 . 100 . 63 Level 1 16 | . . . . . 32 Level 2 1 | . . . . . 3 Level 3 . | . . . . . . Level 4 . | . . . . . . Level 5 . | . . . . . . High Security . | . . . . . . Max Security . | . . . . . . Squads Dispatched 19 | . 4 . . . 15 Investigation 6 | . 2 . . . 4 Extermination 6 | . . . . . 6 Reinforcement 6 | . 2 . . . 4 Assault . | . . . . . . Garrison 1 | . . . . . 1 Intercept . | . . . . . . Searches Triggered . | . . . . . . Construction Impeded . | . . . . . . Haulers Reinforced . | . . . . . . Active Scanning Responses . | . . . . . . Cargo Convoy Interrupts . | . . . . . . Stealth | -11 -10 -10 -9 -9 -6 --------- Run | Yrd Mat Sub Rec Scr Fac Distress Signals 8 | . 6 . . . 2 Communications Jammed . | . . . . . . Distress Signals . | . . . . . . Times Spotted 96 | . 28 20 1 . 47 Peak Tracking Total 8 | . 5 5 1 . 8 Tactical Retreats 5 | . 2 1 . . 2 Traps | -11 -10 -10 -9 -9 -6 ------- Run | Yrd Mat Sub Rec Scr Fac Traps Triggered 9 | . 4 . . . 5 Indirectly . | . . . . . . Trap Hack Attempts . | . . . . . . Triggered . | . . . . . . Disarmed . | . . . . . . Reprogrammed . | . . . . . . Reused . | . . . . . . Traps Extracted . | . . . . . . Installed . | . . . . . . Triggered . | . . . . . . Machines | -11 -10 -10 -9 -9 -6 ---------- Run | Yrd Mat Sub Rec Scr Fac Machines Disabled 7 | . . . . . 7 Max in Single Turn 5 | . . . . . 5 Machines Repaired . | . . . . . . Machines Dismantled . | . . . . . . Machines Sabotaged . | . . . . . . Overloaded Fab Kills . | . . . . . . Hacking | -11 -10 -10 -9 -9 -6 --------- Run | Yrd Mat Sub Rec Scr Fac Machines Accessed 11 | . . 2 1 4 4 Terminals . | . . . . . . Fabricators 4 | . . . . . 4 Repair Stations . | . . . . . . Recycling Units . | . . . . . . Scanalyzers . | . . . . . . Garrison Access . | . . . . . . Total Hacks 25 | . . 3 1 11 10 Successful 23 | . . 3 1 11 8 Failed 2 | . . . . . 2 Catastrophic 1 | . . . . . 1 Database Lockouts . | . . . . . . Manual . | . . . . . . Terminals . | . . . . . . Fabricators 10 | . . . . . 10 Repair Stations . | . . . . . . Recycling Units . | . . . . . . Scanalyzers . | . . . . . . Garrison Access . | . . . . . . Terminal Hacks 15 | . . 3 1 11 . Record 12 | . . 1 1 10 . Open Door 1 | . . 1 . . . Derelict Proto ID Bank 1 | . . . . 1 . Release Object 1 | . . 1 . . . Fabricator Hacks 8 | . . . . . 8 Load Schematic 4 | . . . . . 4 Build 4 | . . . . . 4 Repair Station Hacks . | . . . . . . Recycling Unit Hacks . | . . . . . . Scanalyzer . | . . . . . . Garrison Access Hacks . | . . . . . . Unauthorized Hacks . | . . . . . . Terminals . | . . . . . . Fabricators . | . . . . . . Repair Stations . | . . . . . . Recycling Units . | . . . . . . Scanalyzers . | . . . . . . Garrison Access . | . . . . . . Data Cores Recovered 1 | . . . . . 1 Used . | . . . . . . Hacking Detections 4 | . . . . . 4 Full Trace Events 4 | . . . . . 4 Feedback Events . | . . . . . . Feedback Blocked . | . . . . . . Robot Schematics Acquired . | . . . . . . Robots Built . | . . . . . . Authchips . | . . . . . . Time . | . . . . . . Total Robot Build Rating . | . . . . . . Part Schematics Acquired 18 | . . . . 5 13 Parts Built 4 | . . . . . 4 Authchips . | . . . . . . Time 454 | . . . . . 454 Total Part Build Rating 20 | . . . . . 20 Parts Repaired . | . . . . . . Time . | . . . . . . Parts Recycled . | . . . . . . Recycled Matter . | . . . . . . Retrieved Matter . | . . . . . . Retrieved Components . | . . . . . . Parts Scanalyzed . | . . . . . . Part Schematics Acquired . | . . . . . . Parts Damaged . | . . . . . . Bothacking | -11 -10 -10 -9 -9 -6 ------------ Run | Yrd Mat Sub Rec Scr Fac Used RIF Installer . | . . . . . . Robots Hacked . | . . . . . . Non-combat . | . . . . . . Combat . | . . . . . . Robot Hacks Applied . | . . . . . . Relay Couplers Released . | . . . . . . Fabnet Peak Effective % . | . . . . . . Robots Rewired . | . . . . . . Allies Hacked . | . . . . . . Hacks Repelled . | . . . . . . Allies | -11 -10 -10 -9 -9 -6 -------- Run | Yrd Mat Sub Rec Scr Fac Total Allies 5 | . . 5 . . . Largest Group 4 | . . 4 2 2 2 Highest-Rated Group 76 | . . 76 38 38 38 Highest-Rated Ally 19 | . . 19 19 19 19 Total Orders . | . . . . . . Ally Attacks 24 | . . 20 4 . . Total Damage 407 | . . 326 81 . . Kills 5 | . . 4 1 . . Allies Corrupted . | . . . . . . Allies Melted . | . . . . . . Intel | -11 -10 -10 -9 -9 -6 ------- Run | Yrd Mat Sub Rec Scr Fac Robot Analysis Total . | . . . . . . Derelict Logs Recovered 4 | . . 2 . 2 . Drone Launches . | . . . . . . Drone Recoveries . | . . . . . . Decoded 0b10 Intel 46 | . . . . . 46 Garrisons 1 | . . . . . 1 Patrols 12 | . . . . . 12 Investigations 8 | . . . . . 8 Reinforcements 6 | . . . . . 6 Guards 19 | . . . . . 19 Exploration | -11 -10 -10 -9 -9 -6 ------------- Run | Yrd Mat Sub Rec Scr Fac Turns Passed 15798 | 75 2453 4595 1123 3771 3781 Spaces Moved 5463 | 43 757 2217 338 1175 933 Core 148 | 3 . 92 . . 53 Treads 4073 | 40 757 974 338 1175 789 Legs 50 | . . . . . 50 Wheels 1151 | . . 1151 . . . Hover 26 | . . . . . 26 Flight 15 | . . . . . 15 Fastest Speed 45 | 50 160 120 320 170 45 Average Speed 231 | 152 183 195 320 254 298 Slowest Speed 1000 | 160 240 1000 320 320 1000 Overloaded Moves . | . . . . . . Propulsion Burnouts . | . . . . . . Robots Hopped . | . . . . . . Cave-ins Triggered . | . . . . . . Exploration Rate (%) 55 | 5 77 74 67 84 25 Regions Visited 5 Branch Regions 3 Pre-discovered Areas 1 | . . 1 . . . Known Exits Taken . | . . . . . . Unknown Exits Taken 5 | 1 1 1 1 1 . Scrap Searched 9 | . . 3 . 6 . Spaces Dug 1 | . . . . . 1 Terrain Destroyed 53 | . . 1 . . 52 Melee . | . . . . . . Projectile 3 | . . 1 . . 2 AOE 50 | . . . . . 50 Terrain Rammed . | . . . . . . Walls Destroyed . | . . . . . . Machines Disabled . | . . . . . . Actions | -11 -10 -10 -9 -9 -6 --------- Run | Yrd Mat Sub Rec Scr Fac Total 8231 | 50 1740 2364 382 1960 1735 Wait 2362 | . 910 35 38 743 636 Move 5458 | 42 756 2216 337 1174 933 Hop . | . . . . . . Pick Up 56 | 2 17 5 3 27 2 Fast Attach 35 | 6 4 4 . . 21 Attach 15 | . 1 2 . 2 10 Detach 4 | . . 1 . 2 1 Swap 57 | . 4 18 1 9 25 Drop 28 | . 6 9 3 3 7 Fire 199 | . 41 70 . . 88 Melee 5 | . . . . . 5 Ram 2 | . . 2 . . . Kick . | . . . . . . Crush 1 | . 1 . . . . Escape Stasis 7 | . . . . . 7 Rewire . | . . . . . . Trap . | . . . . . . Miscellaneous 2 | . . 2 . . . Route ------- -11/Scrapyard -10/Materials (discovered 4 exits: [*Mat x3] / *Sub) -10/Subcaves (discovered 2 exits: [*Mat] / *Rec) -9/Recycling (discovered 2 exits: [*Fac] / *Scr) -9/Scraptown (discovered 2 exits: *Fac x2) -6/Factory History --------- Turn | Location | Event 27 | -11/Scrapyard | Discovered new exit (range 16) 76 | -11/Scrapyard | Entered Materials 305 | -10/Materials | Build established: Mutant 503 | -10/Materials | Discovered new exit (range 5) 576 | -10/Materials | Derelicts attacked the area 1363 | -10/Materials | Discovered new exit (range 13) 1745 | -10/Materials | Discovered new exit (range 3) 1938 | -10/Materials | Core integrity fell below 50% 2012 | -10/Materials | Discovered new exit (range 6) 2487 | -10/Materials | Build established: Scavenger-Mutant 2529 | -10/Materials | Entered Subcaves 2574 | -10/Subcaves | A swath of the cavern ceiling suddenly collapsed 2643 | -10/Subcaves | Ambushed by swarm of Subdwellers 2655 | -10/Subcaves | Ambushed by Subdwellers from Twisted Machinery 2657 | -10/Subcaves | Ambushed by Subdwellers from Twisted Machinery 2852 | -10/Subcaves | Shifting Twisted Machinery released Sub. Monowheel 2852 | -10/Subcaves | Shifting Twisted Machinery released Sub. Beam Cannon 2975 | -10/Subcaves | Ambushed by Subdwellers from Twisted Machinery 3143 | -10/Subcaves | Shifting Twisted Machinery released Sub. Beam Cannon 3178 | -10/Subcaves | Discovered new exit (range 10) 3283 | -10/Subcaves | Curiously followed by a Cobbler waking with a query about "LVR3C" 3380 | -10/Subcaves | Visited triangular shrine 3390 | -10/Subcaves | Found Prototype Device 3408 | -10/Subcaves | Identified V3-11A's Pendant 3420 | -10/Subcaves | Learned 2 Materials zone layouts 3465 | -10/Subcaves | Found SUBCON Basin 3520 | -10/Subcaves | Build established: Mutant 3593 | -10/Subcaves | Befriended Subdweller 4134 | -10/Subcaves | Ambushed by Subdwellers from Twisted Machinery 4138 | -10/Subcaves | Befriended Subdweller 4138 | -10/Subcaves | Befriended Subdweller 4193 | -10/Subcaves | Learned location of Zion (-7) 4400 | -10/Subcaves | Discovered new exit (range 13) 4648 | -10/Subcaves | Befriended Subdweller 4648 | -10/Subcaves | Befriended Subdweller 5297 | -10/Subcaves | Shifting Twisted Machinery released Mak. Leg 5512 | -10/Subcaves | Shifting Twisted Machinery released Flamer 5528 | -10/Subcaves | Shifting Twisted Machinery released Hvy. Battle Rifle 5656 | -10/Subcaves | A swath of the cavern ceiling suddenly collapsed 7124 | -10/Subcaves | Entered Recycling 7124 | -9/Recycling | Accompanied by 2 allies 7433 | -9/Recycling | Discovered new exit (range 7) 8038 | -9/Recycling | Scanned before Scraplab entrance 8107 | -9/Recycling | Entered Scraplab 8244 | -9/Recycling | Discovered new exit (range 2) 8247 | -9/Recycling | Entered Scraptown 8247 | -9/Scraptown | Accompanied by 2 allies 8247 | -9/Scraptown | System corruption cleaned by C-Scrubber 8353 | -9/Scraptown | Heard Great Nut preacher, LISTEN AND RECITE! 8422 | -9/Scraptown | Tech Extrapolator generated special schematic: Machine Rigger 8471 | -9/Scraptown | Delivered Broken V3-11A's Pendant to T0-NE2 in exchange for information 8893 | -9/Scraptown | Scanned Subdweller tech in exchange for log data 8898 | -9/Scraptown | Learned Research machine intel 8900 | -9/Scraptown | Learned Research trap positions 8981 | -9/Scraptown | Discovered new exit (range 11) 9069 | -9/Scraptown | Visited SPCMW 9099 | -9/Scraptown | Visited Cyclists 9210 | -9/Scraptown | Visited UFD Registry 9220 | -9/Scraptown | Registered with UFD as "Matterlauncher" 10159 | -9/Scraptown | Visited CR-KLE's Repair Center 10176 | -9/Scraptown | CR-KLE repaired 4 parts 10205 | -9/Scraptown | Visited Awakened 10303 | -9/Scraptown | Entered Cyclist Reading Room 10377 | -9/Scraptown | Visited Bundlers 10795 | -9/Scraptown | Visited Comm Corps 10913 | -9/Scraptown | Visited Science Guys 11038 | -9/Scraptown | Visited Infowarlord's Domain 11206 | -9/Scraptown | Visited Scrap Suit Storage 11224 | -9/Scraptown | Found Scrap Suit 11332 | -9/Scraptown | Visited Supply Room 11383 | -9/Scraptown | Lost 6 parts (1n3u2w) 11497 | -9/Scraptown | Visited Curators Association 11584 | -9/Scraptown | Delivered Scrap Shield to a Scientist 11901 | -9/Scraptown | Found Scrap Suit 12010 | -9/Scraptown | Discovered new exit (range 3) 12018 | -9/Scraptown | Entered Factory 12018 | -6/Factory | Accompanied by 2 allies 12018 | -6/Factory | Evolved 8 slots: Propulsion x2, Utility x5, Weapon x1 12270 | -6/Factory | Fabricated 0b10 Decoder Chip [Skirmisher] (x2) 12334 | -6/Factory | Build established: Tank 12594 | -6/Factory | Lost 3 parts (2n1u) 13774 | -6/Factory | System corruption reached 10% 13810 | -6/Factory | Build established: Scavenger-Gunner 14119 | -6/Factory | Tech Extrapolator generated special schematic: Active Sensor Spoofer 14366 | -6/Factory | Fabricated Tactical Coordination Suite (x1) 14933 | -6/Factory | Garrison activated, responded to threat 15032 | -6/Factory | Lost 4 parts (2n2w) 15093 | -6/Factory | Lost 7 parts (1p1n3u2w) 15330 | -6/Factory | Build established: Mutant 15487 | -6/Factory | Core integrity fell below 50% 15536 | -6/Factory | Lost 3 parts (1p1u1w) 15781 | -6/Factory | Core integrity fell below 20% 15797 | -6/Factory | Fabricated Tactical Coordination Suite? 15799 | -6/Factory | Destroyed by H-66 Slayer with Gauss Rifle Last Messages --------------- 15781_ A bubble of rippling energy engulfs the area. 15781_ Field strength at 95. 15781_ Field strength at 90. 15782_ Field strength at 85. 15782_ A-15 Conveyor collects Imp. Actuator Array. 15783_ Field strength at 80. 15784_ Field strength at 75. 15785_ System corrupted: Matter fused (-9). 15785_ Field strength at 70. 15786_ Field strength at 65. 15787_ Shock Rifle destroyed. 15791_ Imp. Titanium Leg destroyed. 15793_ Slug penetrates Wall. 15793_ Imp. Cesium-ion Thruster destroyed. 15795_ Field strength at 1. 15795_ Stasis field depleted. 15795_ Spear destroyed. 15796_ Critical hit (Burn: +37). 15797_ >> FABRICATOR: Completed Tactical Coordination Suite? 15799_ Penetrated by Slug. Map ----- +----------------------------------------------------+ | | | | | | | | | | | | | | | | | | | | | | | | | | | | | | | | | | | ??????????????????????????????###########????????? | | ????????????????????????????? ???????? | | ????????????????????????????# """ """ """ #??????? | | ????????????????????????????# """ """ """ #??????? | | ??????????????????##????????? """ """ """ ???????? | | ??????????????????? ????????? ??????#### | | ????????????????????# ?????????? !????????# | | ????????????????????# ###########+########### "" | | ????????????????????# @ h !!"" | | ????????????????????# #########!"" | | ????????????????????# #?####### " | | ????????????????????# lg #?#""""## | | ????????????????????# ###"F!"###"# | | ????????????????????# gg ! ! !!= | | ????????????????? !|!|! | | ??????????????? g""""""""" """""""""*= | | ??????????????? | | ??????????????? """"""""" """"""""" | | ??????????????? | | ??????????????? """"""""" """"""""" | | ???????????????? " "" ? | | ????????????????? "R"" """"????" """"""""" | | ??????????????????### ""? ???????? | | ????????????????????#????? u????????? | | ?????????????????????????? ????????? | | ?????????????????????????? ???????????#### | | ?????????????????????????????????????????# ####### | | ?????????????????????????????????????????# ??????? | | ?????????????????????????????????????????#???????? | | ?????????????????????????????????????????????????? | | ?????????????????????????????????????????????????? | | ?????????????????????????????????????????????????? | | ?????????????????????????????????????????????????? | +----------------------------------------------------+ Best States ------------- Heat Dissipation 65 Energy Generation 25 Energy Capacity 310 Matter Stores 450 Matter Capacity 450 Sight Range 22 Terrain Scan Density 10 Additional Mass Support 6 Armor Coverage 800 Resistance: EM 25 Core Shielding 20 Evasion (%) 61 Targeting Accuracy 16 Recoil Reduction 4 Item Schematics ----------------- Spk. Treads | -9/Scraptown | Extrapolated Machine Rigger | -9/Scraptown | Extrapolated Mak. Spear | -9/Scraptown | Extrapolated 0b10 Decoder Chip [Skirmisher] | -9/Scraptown | Extrapolated Mak. Terrain Scanner | -9/Scraptown | Extrapolated Mak. Sensor Array | -6/Factory | Extrapolated Mak. Terrain Scan Processor | -6/Factory | Extrapolated Mak. Leg | -6/Factory | Extrapolated Hvy. Battle Rifle | -6/Factory | Extrapolated Tactical Coordination Suite | -6/Factory | Extrapolated Beamcaster | -6/Factory | Extrapolated 0b10 Decoder Chip [Looter] | -6/Factory | Extrapolated Mak. ECM Suite | -6/Factory | Extrapolated Spk. Medium Treads | -6/Factory | Extrapolated Mak. Targeting Computer | -6/Factory | Extrapolated Active Sensor Spoofer | -6/Factory | Extrapolated Enh. Flamer | -6/Factory | Extrapolated Mak. Coolant Network | -6/Factory | Extrapolated Robot Schematics ------------------ None Fabricated ------------ 0b10 Decoder Chip [Skirmisher] | x2 | -6/Factory Tactical Coordination Suite | x1 | -6/Factory Tactical Coordination Suite | x1 | -6/Factory Alien Tech Used ----------------- None Achievements -------------- None Challenges ------------ None Game ------ Seed EnhancedTransmissionSteel Manual? 0 Play Time 01:11:26 Cumulative 100.9 hours Start 2024.09.26 @ 08:15:53 End 2024.09.26 @ 15:41:22 Sessions 1 Manual Loads 0 Difficulty Rogue Special Mode None Game No. 172 Rogue 172 Adventurer 0 Explorer 0 Win Type - Total 0 Types 0/0/0/0/0/0/0/0/0 Lore% 49 Gallery% 52 Achievement% 41 Wizard Run 0 Options --------- Layout 0 ASCII 0 Keyboard 1 Movement Numpad Keybinds 0 Fullscreen 2 Font 18/SmallcapsGlow Map View 76x50 Zoom Use 0% Tactical HUD 1 Map Filters NONE Filters NONE Steam 1 RUN: 8f2bb213-2c52-4786-bc34-8f99767ec7fc